Cogmind - Beta 16 --- EXPLORER MODE // 2025.11.13 @ 21:43:52 Player: Lily Result: Destroyed by D-53 Grenadier with Mini Grenade Launcher Performance ------------- Evolutions (1) 500 Regions Visited (3) 600 Robots Destroyed (15) 75 Value Destroyed (456) 456 Prototype IDs (0) 0 Alien Tech Used (0) 0 Bonus (0) 0 TOTAL SCORE: 1631 Bonus ------- None Cogmind --------- Core Integrity 0/400 Matter 300/300 Energy 100/100 System Corruption 0% Temperature Cool (0) Movement Core (200) Ox3 Location -9/Mines Parts ------- > --- POWER (2) -------- (None) > --- PROPULSION (2) --- (None) > --- UTILITY (4) ------ Medium Storage Unit Utility Shielding > --- WEAPON (2) ------- (None) > --- INVENTORY (10) --- Small Matter Pod (50) Large Matter Pod (150) High-capacity Matter Pod (200) Signal Interpreter Terrain Scan Processor Salvage Targeting Computer Peak State ------------ > --- POWER ------------ Ion Engine Light Ion Engine > --- PROPULSION ------- Light Treads Light Treads > --- UTILITY ---------- Medium Storage Unit Core Shielding Utility Shielding Shield Generator > --- WEAPON ----------- Medium Laser Assault Rifle > --- INVENTORY -------- Light Ion Engine Heat Sink Small Matter Pod Large Matter Pod High-capacity Matter Pod Signal Interpreter Terrain Scan Processor Small Laser Datajack [Rating: 12] Favorites ----------- Power Ion Engine Engine Ion Engine Propulsion Light Treads Treads Light Treads Utility Medium Storage Unit Device Shield Generator Storage Medium Storage Unit Processor Targeting Computer Protection Core Shielding Weapon Medium Laser Energy Gun Medium Laser Ballistic Gun Assault Rifle Special Melee Weapon Datajack Build | -11 -10 -9 -9 ------- Run | Yrd Mat Mat Min Slots Evolved 3 | . 1 2 . Power 1 | . 1 . . Propulsion . | . . . . Utility 2 | . . 2 . Weapon . | . . . . Parts Attached 16 | 7 1 4 4 Power 3 | 1 1 . 1 Engine 3 | 1 1 . 1 Core . | . . . . Reactor . | . . . . Propulsion 2 | 2 . . . Treads 2 | 2 . . . Leg . | . . . . Wheel . | . . . . Hover . | . . . . Flight . | . . . . Utility 7 | 2 . 4 1 Device 2 | . . 1 1 Storage 1 | 1 . . . Processor 1 | . . 1 . Hackware . | . . . . Protection 3 | 1 . 2 . Artifact . | . . . . Weapon 4 | 2 . . 2 Energy Gun 2 | 1 . . 1 Energy Cannon . | . . . . Ballistic Gun 1 | 1 . . . Ballistic Cannon . | . . . . Launcher . | . . . . Special Weapon . | . . . . Impact Weapon . | . . . . Slashing Weapon . | . . . . Piercing Weapon . | . . . . Special Melee Weapon 1 | . . . 1 Unidentified Prototypes . | . . . . Parts Lost 13 | . . 1 12 Power 3 | . . . 3 Propulsion 2 | . . . 2 Utility 4 | . . 1 3 Weapon 4 | . . . 4 Highest Loss Streak 12 | . . 1 12 To Critical Strikes . | . . . . Average Backups 8 | 4 7 9 7 Power . | . . 1 . Propulsion . | 1 . . . Utility 5 | 1 5 6 6 Weapon . | 1 1 1 . Tool/Special . | . . . . Unused Backups 6 | . . . 6 Power . | . . . . Propulsion . | . . . . Utility 6 | . . . 6 Weapon . | . . . . Tool/Special . | . . . . Average Slot Usage (%) 95 | . 100 99 62 Engine 20 | . 25 20 9 Treads 20 | . 25 20 9 Device 2 | . . 4 3 Storage 10 | . 12 10 10 Processor 1 | . . 3 . Protection 18 | . 12 21 21 Energy Gun 10 | . 12 10 6 Ballistic Gun 9 | . 12 10 3 Peak Build Rating 12 | 7 9 12 11 Average Rating 9 | 3 8 11 6 On Entrance 6 | . 7 9 11 Avg Prop Armor Cover (%) . | . . . . Naked Turns . | . . . . Heaviest Build 27 | 20 23 27 27 Greatest Support 40 | 40 40 40 40 Greatest Overweight (x) 3 | 3 . . 3 Average Overweight (x) . | . . . 1 Largest Inventory Capacity 10 | 10 10 10 10 Average Capacity 9 | 9 10 10 10 Most Carried 10 | 10 10 10 10 Average Carried 8 | 5 7 9 7 Final Capacity 10 | 10 10 10 10 Final Carried 10 | 5 10 10 6 Class Distribution -------------------- 100% | Hacker-Mutant Dominant Class ---------------- Hacker-Mutant | -10/Materials Hacker-Mutant | -9/Materials Hacker-Mutant | -9/Mines Resources | -11 -10 -9 -9 ----------- Run | Yrd Mat Mat Min Matter Collected 837 | 203 271 358 5 Remotely . | . . . . Salvage Created 657 | . 74 493 90 Parts 42 | . 7 35 . Haulers Intercepted . | . . . . Recyclers Shooed . | . . . . Parts Field Recycled . | . . . . Retrieved Matter . | . . . . Parts Self-Destructed . | . . . . Prevented . | . . . . Parts Restored . | . . . . Kills | -11 -10 -9 -9 ------- Run | Yrd Mat Mat Min Combat Hostiles Destroyed 17 | . 1 10 6 Guns 17 | . 1 10 6 Classes Destroyed 7 | . 3 3 1 Worker 1 | . 1 . . Watcher 3 | . 1 2 . Swarmer 1 | . . 1 . Grunt 4 | . 1 3 . Brawler 1 | . . 1 . Sentry 5 | . . 5 . Assembled 6 | . . . 6 Best Kill Streak 6 | . 3 5 6 Combat Bots Only 6 | . 1 3 6 Max Kills in Single Turn 2 | . 2 1 1 Gunslinging . | . . . . Exploded . | . . . . Melee . | . . . . Uniques/NPCs Destroyed . | . . . . Combat | -11 -10 -9 -9 -------- Run | Yrd Mat Mat Min Hostile Shots Fired 185 | . 5 59 121 Missed 47 | . . 17 30 Hits 138 | . 5 42 91 Melee 13 | . . . 13 Projectile 125 | . 5 42 78 AOE 2 | . . . 2 Critical Strikes 5 | . . 4 1 Actively Blocked 2 | . . 2 . Damage Taken 1300 | . 32 297 971 Core 401 | . . 38 363 Absorbed by Shields 74 | . . 74 . Redirected to Shielding 73 | . . 12 61 Ignored by Resistances 836 | . 21 233 582 Core Remaining (%) 100 | 100 100 . . Volleys Fired 61 | . 6 35 20 Largest 2 | . 2 2 2 Hottest 70 | . 70 70 70 Shots Fired 96 | . 12 62 22 Gun 96 | . 12 62 22 Cannon . | . . . . Launcher . | . . . . Special . | . . . . Kinetic 43 | . 6 35 2 Thermal 53 | . 6 27 20 Explosive . | . . . . Electromagnetic . | . . . . Robot Hit Streak 44 | . 7 44 12 Robot Miss Streak 1 | . 1 1 1 Penetration Max . | . . . . Secondary Targets . | . . . . Shots Hit Robots 84 | . 10 54 20 Core Hits 36 | . 4 21 11 Critical Kills . | . . . . Critical Parts Destroyed . | . . . . Critical Strikes 2 | . . 1 1 Burn 2 | . . 1 1 Melee Attacks . | . . . . Impact . | . . . . Slashing . | . . . . Piercing . | . . . . Sneak Attacks . | . . . . Combat Hostiles . | . . . . Follow-up Attacks . | . . . . Damage Inflicted 906 | . 126 546 234 Guns 892 | . 126 542 224 Cannons . | . . . . Explosions . | . . . . Melee . | . . . . Ramming 14 | . . 4 10 Kinetic 390 | . 76 292 22 Thermal 502 | . 50 250 202 Explosive . | . . . . Electromagnetic . | . . . . Impact . | . . . . Slashing . | . . . . Piercing . | . . . . Highest Corruption . | . . . . Average Corruption . | . . . . Corruption Purged . | . . . . Corruption Blocked . | . . . . Overload Shots . | . . . . Overflow Damage . | . . . . Projectiles . | . . . . Explosions . | . . . . Melee . | . . . . Knockbacks . | . . . . Impact . | . . . . Kinetic . | . . . . Secondary . | . . . . Self-Inflicted Damage 4 | . . . 4 Shots . | . . . . Rammed 9 | . . 1 8 Targets Rammed 9 | . . 1 8 Kicked . | . . . . Crushed . | . . . . Highest Temperature 174 | . 174 129 43 Average Temperature 50 | . 92 44 19 Received Heat Transfer 280 | . 30 170 80 Siege Activations . | . . . . Martial Activations . | . . . . Shielding Activations . | . . . . Robots Disrupted . | . . . . Combat Hostiles . | . . . . Robots Corrupted . | . . . . Combat Hostiles . | . . . . Parts Fried . | . . . . Impact Corruptions . | . . . . Robots Melted . | . . . . Combat Hostiles . | . . . . Parts Melted 3 | . . 3 . Heat Transferred 1534 | . 148 814 572 Parts Sabotaged . | . . . . Parts Stolen . | . . . . Parts Stripped . | . . . . Power Chain Reactions . | . . . . Alert | -11 -10 -9 -9 ------- Run | Yrd Mat Mat Min Maximum Alert Level . | . . . . Low Security (%) 100 | 100 100 100 100 Level 1 . | . . . . Level 2 . | . . . . Level 3 . | . . . . Level 4 . | . . . . Level 5 . | . . . . High Security . | . . . . Max Security . | . . . . Peak Influence 85 | . 32 85 18 Initial 18 | . . . 18 Average 12 | . 1 22 3 Influence Increases 321 | . 32 289 . Destroy 0b10 Robot/C 220 | . 20 200 . Destroy 0b10 Robot/NC 20 | . 10 10 . Destroy Leader 76 | . 2 74 . Successful Hack 4 | . . 4 . Destroy Structure 1 | . . 1 . Influence Decreases 321 | . 32 220 69 Entered New Map 51 | . . . 51 Time Decay 257 | . 32 210 15 Lost Part 13 | . . 10 3 Squads Dispatched . | . . . . Investigation . | . . . . Extermination . | . . . . Reinforcement . | . . . . Assault . | . . . . Garrison . | . . . . Intercept . | . . . . Searches Triggered . | . . . . Construction Impeded . | . . . . Haulers Reinforced . | . . . . Active Scanning Responses . | . . . . Cargo Convoy Interrupts . | . . . . Stealth | -11 -10 -9 -9 --------- Run | Yrd Mat Mat Min Distress Signals 1 | . 1 . . Communications Jammed . | . . . . Distress Signals . | . . . . Times Spotted 35 | . 2 13 20 Peak Tracking Total 18 | . 2 3 18 Tactical Retreats 1 | . . . 1 Traps | -11 -10 -9 -9 ------- Run | Yrd Mat Mat Min Traps Triggered . | . . . . Indirectly . | . . . . Trap Hack Attempts . | . . . . Triggered . | . . . . Disarmed . | . . . . Reprogrammed . | . . . . Reused . | . . . . Traps Extracted . | . . . . Installed . | . . . . Triggered . | . . . . Machines | -11 -10 -9 -9 ---------- Run | Yrd Mat Mat Min Machines Disabled . | . . . . Max in Single Turn . | . . . . Machines Repaired . | . . . . Machines Dismantled . | . . . . Machines Sabotaged . | . . . . Overloaded Fab Kills . | . . . . Hacking | -11 -10 -9 -9 --------- Run | Yrd Mat Mat Min Machines Accessed 6 | . 1 5 . Terminals 2 | . . 2 . Fabricators . | . . . . Repair Stations . | . . . . Recycling Units 3 | . 1 2 . Scanalyzers 1 | . . 1 . Garrison Access . | . . . . Total Hacks 15 | . 2 13 . Successful 14 | . 2 12 . Failed 1 | . . 1 . Catastrophic . | . . . . Database Lockouts . | . . . . Manual . | . . . . Terminals 4 | . . 4 . Fabricators . | . . . . Repair Stations . | . . . . Recycling Units 7 | . 2 5 . Scanalyzers 4 | . . 4 . Garrison Access . | . . . . Terminal Hacks 4 | . . 4 . Record 1 | . . 1 . Robot Analysis 1 | . . 1 . Emergency Access Points 1 | . . 1 . Dispatch Records 1 | . . 1 . Fabricator Hacks . | . . . . Repair Station Hacks . | . . . . Recycling Unit Hacks 6 | . 2 4 . Retrieve Matter 3 | . 1 2 . Retrieve Components 3 | . 1 2 . Scanalyzer 4 | . . 4 . Retrieve Study 4 | . . 4 . Garrison Access Hacks . | . . . . Unauthorized Hacks . | . . . . Terminals . | . . . . Fabricators . | . . . . Repair Stations . | . . . . Recycling Units . | . . . . Scanalyzers . | . . . . Garrison Access . | . . . . Data Cores Recovered . | . . . . Used . | . . . . Hacking Detections 1 | . . 1 . Full Trace Events 1 | . . 1 . Feedback Events . | . . . . Feedback Blocked . | . . . . Robot Schematics Acquired . | . . . . Robots Built . | . . . . Authchips . | . . . . Time . | . . . . Total Robot Build Rating . | . . . . Part Schematics Acquired . | . . . . Parts Built . | . . . . Authchips . | . . . . Time . | . . . . Total Part Build Rating . | . . . . Part Studies Acquired 4 | . . 4 . Parts Repaired . | . . . . Time . | . . . . Parts Recycled . | . . . . Recycled Matter . | . . . . Retrieved Matter . | . . . . Retrieved Components 8 | . 3 5 . Parts Scanalyzed . | . . . . Part Schematics Acquired . | . . . . Parts Damaged . | . . . . Bothacking | -11 -10 -9 -9 ------------ Run | Yrd Mat Mat Min Used RIF Installer . | . . . . Robots Hacked . | . . . . Non-combat . | . . . . Combat . | . . . . Robot Hacks Applied . | . . . . Relay Couplers Released . | . . . . Fabnet Peak Effective % . | . . . . Robots Rewired . | . . . . Allies Hacked . | . . . . Hacks Repelled . | . . . . Allies | -11 -10 -9 -9 -------- Run | Yrd Mat Mat Min Total Allies . | . . . . Largest Group . | . . . . Highest-Rated Group . | . . . . Highest-Rated Ally . | . . . . Total Orders . | . . . . Ally Attacks . | . . . . Total Damage . | . . . . Kills . | . . . . Allies Corrupted . | . . . . Allies Melted . | . . . . Intel | -11 -10 -9 -9 ------- Run | Yrd Mat Mat Min Active Infowar (turns) . | . . . . Robot Analysis Total 1 | . . 1 . Derelict Logs Recovered . | . . . . Drone Launches . | . . . . Drone Recoveries . | . . . . Exploration | -11 -10 -9 -9 ------------- Run | Yrd Mat Mat Min Turns Passed 992 | 88 301 510 93 Spaces Moved 492 | 49 173 253 17 Core 36 | 28 . . 8 Treads 456 | 21 173 253 9 Legs . | . . . . Wheels . | . . . . Hover . | . . . . Flight . | . . . . Fastest Speed 50 | 50 160 160 160 Average Speed 158 | 143 160 160 178 Slowest Speed 200 | 200 160 160 200 Overloaded Moves . | . . . . Propulsion Burnouts . | . . . . Robots Hopped . | . . . . Potential Cave-ins . | . . . . Cave-ins Triggered . | . . . . Exploration Rate (%) 18 | 3 29 31 10 Regions Visited 3 Branch Regions 1 Pre-discovered Areas . | . . . . Known Exits Taken 3 | 1 1 1 . Unknown Exits Taken . | . . . . Scrap Searched . | . . . . Spaces Dug . | . . . . Terrain Destroyed . | . . . . Melee . | . . . . Projectile . | . . . . AOE . | . . . . Terrain Rammed . | . . . . Walls Destroyed . | . . . . Machines Disabled . | . . . . Actions | -11 -10 -9 -9 --------- Run | Yrd Mat Mat Min Total 597 | 67 185 296 49 Wait . | . . . . Move 489 | 48 172 252 17 Hop . | . . . . Pick Up 21 | 12 6 3 . Fast Attach 1 | . . 1 . Attach 15 | 7 1 3 4 Detach . | . . . . Swap . | . . . . Drop 1 | . . 1 . Fire 61 | . 6 35 20 Melee . | . . . . Ram 8 | . . . 8 Kick . | . . . . Crush 1 | . . 1 . Escape Stasis . | . . . . Rewire . | . . . . Trap . | . . . . Miscellaneous . | . . . . Route ------- -11/Scrapyard -10/Materials -9/Materials (discovered 2 exits: *Mat / *Min) -9/Mines History --------- Turn | Location | Event 17 | -11/Scrapyard | Identified exit to Materials 17 | -11/Scrapyard | Discovered exit to Materials (range 15) 89 | -11/Scrapyard | Entered Materials 89 | -10/Materials | Evolved 1 slot: Power x1 300 | -10/Materials | Build established: Hacker-Mutant 382 | -10/Materials | Identified exit to Materials 382 | -10/Materials | Discovered exit to Materials (range 5) 390 | -10/Materials | Entered another Materials area 390 | -9/Materials | Evolved 2 slots: Utility x2 665 | -9/Materials | Identified exit to Materials 665 | -9/Materials | Discovered exit to Materials (range 3) 881 | -9/Materials | Identified exit to Mines 881 | -9/Materials | Discovered exit to Mines (range 7) 900 | -9/Materials | Entered Mines 901 | -9/Mines | Assembled infested the area 906 | -9/Mines | Assisted by a Guerilla fighting off Assembled 957 | -9/Mines | Core integrity fell below 50% 982 | -9/Mines | Core integrity fell below 20% 993 | -9/Mines | Destroyed by D-53 Grenadier with Mini Grenade Launcher Last Messages --------------- 00937_ YM-UFR(h) destroyed. 00937_ as-62129 destroyed. 00939_ as-43209 destroyed. 00941_ Lgt. Ion Engine+ destroyed. 00945_ Destroyed Asb. Hover Unit. 00946_ Lgt. Treads destroyed. 00947_ as-08814 destroyed. 00948_ Datajack destroyed. 00949_ Destroyed Asb. F-torch. 00951_ as-79366 destroyed. 00954_ Heat Sink destroyed. 00957_ as-66718 destroyed. 00959_ Sml. Laser destroyed. 00961_ Acquired 5 matter. 00967_ Slammed into as-42693. 00969_ Destabilizing: Core damaged (-16). 00975_ Core Shielding destroyed. 00975_ Slammed into as-32043. 00991_ as-32043 destroyed. 00992_ as-42693 destroyed. Map ----- +----------------------------------------------------+ | ?????????????????????????????????????????????? | | ?????????????????????????????????????????????? | | ?????????????????????????????????????????????? | | ?????????????????????????????????????????????? | | ?????????????????????????????????????????????? | | ?????????????????????????????????????????????? | | ?????????????????????????????????????????????? | | ?????????????????????????????????????????????? | | ?????????????????????????????????????????????? | | ?????????????????????????????????????????????? | | ?????????????????????????????????????????????? | | ?????????????????????????????????????????????? | | ?????????????????????????????????????????????? | | ???????????#?????????????????????????????????? | | ????????? #???????????????????????????????? | | ????????? ??????????????????????????????? | | ???????? #?????????????????????????????? | | ????????? % ??????###???????????????????? | | ??????????? ??????# ???????????????????? | | ???????????? #?????# #???????????????????? | | ?????????????# #????# #???????????????????? | | ?????????????? ????# #???????????????????? | | ???????????????# ??### ###?????????????????? | | ????????????????# ### #?????????????????? | | ????????????????### # #?????????????????? | | ???????????# %dd @ #?????????????????? | | ???###??????# % %% < #????????????????? | | ??## #????# %% % #?????????????? | | ??# ##?## %#### #????????????? | | ??# ### ###!#??## #????????????? | | ??# ###?###???##### #???????????? | | ???# #??????????????# #???????????? | | ???## ####??????????????? #???????????? | | ????## ##??????????????????? ##???????????? | | ?????####????????????????????####????????????? | | ?????????????????????????????????????????????? | | | | | | | | | | | | | | | | | | | | | | | | | | | | | +----------------------------------------------------+ Best States ------------- Heat Dissipation 38 Energy Generation 18 Energy Capacity 275 Matter Stores 300 Matter Capacity 300 Sight Range 16 Terrain Scan Density 10 Armor Coverage 150 Resistance: KI 35 Resistance: TH 35 Resistance: EX 35 Resistance: EM 35 Resistance: I 35 Resistance: S 35 Resistance: P 35 Core Shielding 20 Utility Shielding 33 Evasion (%) 50 Targeting Accuracy 5 Recoil Reduction 2 Offensive Hacking 20 Item Schematics ----------------- None Robot Schematics ------------------ None Fabricated ------------ Nothing Repaired ---------- Nothing Studied --------- Assault Rifle | -9/Materials | Hacked Ion Engine | -9/Materials | Hacked Lgt. Ion Engine | -9/Materials | Hacked Med. Laser | -9/Materials | Hacked Alien Tech Used ----------------- None Achievements -------------- Item+ That Tickles Challenges ------------ None Game ------ Seed ShieldTrapActivator Manual? 0 Play Time 00:12:32 Cumulative 14.7 hours Start 2025.11.13 @ 21:27:28 End 2025.11.13 @ 21:43:52 Sessions 1 Manual Loads 0 Difficulty Explorer Special Mode None Game No. 44 Rogue 34 Adventurer 0 Explorer 10 Win Type - Total 0 Types 0/0/0/0/0/0/0/0/0/0 Lore% 8 Gallery% 12 Achievement% 12 Wizard Run 0 Options --------- Layout 1 ASCII 0 Keyboard 0 Movement Mouse Keybinds 0 Fullscreen 1 Font 24/Smallcaps Map View 50x35 Zoom Use 0% Tactical HUD 1 Map Filters NONE Filters NONE Steam 1 RUN: 3f60de38-d581-4f56-b436-2ca81fb83e81